bitfinex-derivatives/quotes_ETHF0:USTF0_20250627
["timestamp","ask_amount","ask_price","bid_price","bid_amount"]
[1751033336975,0.8211,2434.9,2434.8,27.3334]
[1751033337175,0.8211,2434.9,2434.8,25.999]
[1751033337762,2.8124,2434.9,2434.8,25.999]
[1751033338573,1.9913,2434.9,2434.8,26.82014]
[1751033338970,4.02888,2435.0,2434.9,0.8211]
[1751033339272,3.2078,2435.0,2434.9,0.8211]
[1751033339473,3.2078,2435.0,2434.9,3.3249]
[1751033339675,3.2078,2435.0,2434.9,2.5038]
[1751033339972,4.02887,2435.0,2434.9,33.023]
[1751033340273,1.0995,2435.6,2434.9,33.023]
[1751033340576,0.96759947,2435.5,2435.4,10.47516718]
[1751033340767,0.96759947,2435.5,2435.4,44.31809718]
[1751033340974,0.01709089,2435.7,2435.6,0.82087]
[1751033341170,0.01709089,2435.7,2435.6,34.08523718]
[1751033341375,6.15105,2436.3,2435.6,38.26436718]
[1751033341577,5.3304,2436.3,2435.9,7.26736718]
[1751033341777,0.0429,2436.2,2436.1,0.8207]
[1751033342174,3.2078,2436.3,2436.1,1.3534]
[1751033342480,3.2078,2436.3,2436.2,26.81666]
[1751033342679,1.5304,2436.4,2436.2,25.996]
[1751033342881,0.82063,2436.3,2436.2,25.996]
[1751033343183,1.5304,2436.4,2436.3,0.82063]
[1751033343672,4.2612,2436.9,2436.5,0.82055]
[1751033343873,2.81088,2436.8,2436.6,25.996]
[1751033344674,0.8205,2436.7,2436.6,25.996]
[1751033345180,2.2418,2436.7,2436.6,25.996]
[1751033345484,0.82052,2436.7,2436.4,25.991]
[1751033345681,0.82052,2436.7,2436.4,26.81159]
[1751033345978,0.82053,2436.6,2436.4,26.81159]
[1751033346180,0.82053,2436.6,2436.4,25.991]
[1751033346388,0.82054,2436.6,2436.4,26.81158]
[1751033346683,0.8206,2436.4,2436.3,10.2318]
[1751033346886,3.2078,2436.6,2436.3,7.024]
[1751033347087,0.82083,2435.7,2435.6,6.46745721]
[1751033347282,0.82087,2435.6,2435.5,7.018]
[1751033347785,0.82088,2435.6,2435.4,3.25965721]
[1751033347973,1.9904,2435.6,2435.4,3.25965721]
[1751033348178,2.81127,2435.6,2435.4,4.08056721]
[1751033348385,2.81129,2435.6,2435.4,0.82092]
[1751033348589,0.8209,2435.5,2435.3,7.28840721]
[1751033348784,2.81128,2435.6,2435.4,26.80793]
[1751033348976,1.9904,2435.6,2435.4,26.80793]
[1751033349176,2.81127,2435.6,2435.4,26.80793]
[1751033349482,2.81129,2435.6,2435.4,26.80793]
[1751033350170,1.9904,2435.6,2435.5,0.8209]
[1751033350670,2.81128,2435.6,2435.4,26.80792]
[1751033350878,0.8209,2435.5,2435.4,25.987]
[1751033351373,1.4356,2435.5,2434.8,2.2197]
[1751033351679,0.82104,2435.1,2434.9,33.82709]
[1751033351885,0.82107,2435.0,2434.9,33.006]
[1751033352086,0.82103,2435.2,2435.0,0.82107]
[1751033352382,0.82107,2435.0,2434.9,7.018]
[1751033352985,0.82106,2435.1,2434.9,7.8391]
[1751033353176,6.6338,2435.5,2434.9,7.018]
[1751033353484,0.82107,2435.0,2434.9,7.018]
[1751033353672,0.82107,2435.1,2434.9,7.8391]
[1751033353886,0.82107,2435.0,2434.9,7.018]
[1751033355082,2.81147,2435.0,2434.9,7.018]
[1751033355893,5.24777,2435.0,2434.9,7.018]
[1751033359082,0.82117,2434.7,2434.6,33.009]
[1751033359782,3.0777,2435.0,2434.7,0.82114]
[1751033359978,3.0777,2435.0,2434.6,33.009]
[1751033360178,0.82117,2434.7,2434.6,33.009]
[1751033360784,0.82117,2434.7,2434.6,7.019]
[1751033361783,5.1982,2434.8,2434.4,3.2078]
[1751033362084,0.82124,2434.5,2434.4,10.2268]
[1751033363084,2.81161,2434.6,2434.4,10.2268]
[1751033363289,0.82124,2434.5,2434.4,10.2268]
[1751033363585,2.81163,2434.6,2434.4,11.04807]
[1751033363780,0.82124,2434.5,2434.4,10.2268]
[1751033363988,2.81162,2434.6,2434.4,11.04806]
[1751033364191,1.9904,2434.6,2434.5,0.82124]
[1751033364488,1.9904,2434.6,2434.5,35.44660718]
[1751033364689,3.2078,2434.8,2434.7,0.82117]
[1751033365185,2.81148,2435.0,2434.8,0.82114]
[1751033365383,2.81148,2435.0,2434.8,33.83214]
[1751033365684,2.81148,2435.0,2434.8,33.83213]
[1751033365884,0.8211,2434.9,2434.8,33.83213]
[1751033366092,2.81149,2435.0,2434.9,0.8211]
[1751033366290,1.9904,2435.0,2434.9,0.8211]
[1751033366586,0.8211,2434.9,2434.8,36.2188]
[1751033367185,0.8211,2434.9,2434.8,7.02]
[1751033367390,2.2046,2434.9,2434.8,7.02]
[1751033367887,4.195,2434.9,2434.8,7.02]
[1751033368088,2.8115,2434.9,2434.8,7.02]
[1751033370887,1.9904,2434.9,2434.8,7.02]
[1751033371094,2.8115,2434.9,2434.8,7.02]
[1751033373695,1.9904,2434.9,2434.4,0.82126]
[1751033373888,0.82117,2434.7,2434.6,0.82118]
[1751033374897,0.82117,2434.7,2434.6,0.8212]
[1751033375388,0.82117,2434.7,2434.4,8.4575]
[1751033375592,0.82115,2434.8,2434.7,0.82117]
[1751033375789,1.9904,2434.9,2434.8,0.82114]
[1751033375996,0.8211,2434.9,2434.8,7.02]
[1751033376398,0.8211,2434.9,2434.8,7.84114]
[1751033376695,0.8211,2434.9,2434.8,9.16884]
[1751033376890,0.8211,2434.9,2434.8,8.3477]
[1751033377085,1.0216,2435.0,2434.8,8.3477]
[1751033377291,1.0216,2435.0,2434.8,9.16882]
[1751033377492,1.0216,2435.0,2434.9,0.8211]
[1751033377693,1.0216,2435.0,2434.9,2.1488]
[1751033378698,1.84267,2435.0,2434.9,1.3277]
[1751033378998,1.84267,2435.0,2434.9,2.1488]
[1751033378999,1.0216,2435.0,2434.9,2.1488]
[1751033379499,1.84267,2435.0,2434.9,1.3277]
[1751033379797,0.8211,2434.9,2434.8,7.02]
[1751033380197,0.8212,2434.6,2434.5,10.2218]
[1751033381394,1.82251735,2434.6,2434.5,3.2078]
[1751033381900,0.82127,2434.4,2434.3,7.014]
[1751033382693,0.82127,2434.4,2434.3,7.83528]
[1751033382889,1.9904,2434.4,2434.3,7.83528]
[1751033383591,1.9904,2434.4,2434.3,12.83528]
[1751033383904,0.82119,2434.7,2434.5,0.82123]
[1751033384100,3.2078,2434.8,2434.6,25.983]
[1751033384402,4.02894,2434.8,2434.7,7.015]
[1751033384700,5.03064642,2434.8,2434.7,7.015]
[1751033385098,4.20950642,2434.8,2434.7,7.83617]
[1751033385288,4.20950642,2434.8,2434.7,9.27647]
[1751033385492,5.03064642,2434.8,2434.7,8.4553]
[1751033386401,5.03064642,2434.8,2434.7,9.27647]
[1751033386596,5.03064642,2434.8,2434.7,8.4553]
[1751033387705,5.03064642,2434.8,2434.7,7.015]
[1751033388206,0.82127,2434.4,2434.3,1.4054]
[1751033388402,2.3803,2434.7,2434.4,0.82126]
[1751033388603,0.82127,2434.4,2434.3,33.81729]
[1751033388796,0.82125,2434.5,2434.3,32.996]
[1751033388998,0.82127,2434.4,2434.3,32.996]
[1751033389503,0.82127,2434.4,2434.3,7.015]
[1751033389807,0.82127,2434.4,2434.3,32.995]
[1751033390202,0.82127,2434.4,2434.3,7.015]
[1751033390708,0.82137,2434.1,2434.0,7.015]
[1751033391411,0.82144,2433.9,2433.8,3.2078]
[1751033391608,1.0544,2434.0,2433.8,3.2078]
[1751033391912,0.82144,2433.9,2433.8,3.2078]
[1751033392210,1.0544,2434.0,2433.8,4.02927]
[1751033392211,1.87582,2434.0,2433.8,4.02927]
[1751033393200,0.82144,2433.9,2433.8,3.2078]
[1751033393401,1.87583,2434.0,2433.8,4.02927]
[1751033394003,1.0544,2434.0,2433.8,3.2078]
[1751033394202,1.87582,2434.0,2433.8,4.02925]
[1751033394401,0.82144,2433.9,2433.8,4.02925]
[1751033394604,1.87582,2434.0,2433.8,4.02925]
[1751033395012,1.0544,2434.0,2433.9,0.82144]
[1751033395312,1.84249,2434.1,2433.9,0.82144]
[1751033395610,1.0211,2434.1,2433.8,4.02925]
[1751033395808,0.82144,2433.9,2433.8,3.2078]
[1751033396307,0.82144,2433.9,2433.8,4.02927]
[1751033396508,0.0418,2434.0,2433.9,0.82144]
[1751033396711,0.0418,2434.0,2433.9,8.08880718]
[1751033396906,0.82127,2434.4,2434.3,0.8213]
[1751033397212,1.8205646,2434.4,2434.3,0.82129]
[1751033397408,1.8205646,2434.4,2434.2,33.81631]
[1751033397611,0.82126,2434.5,2434.3,0.82128]
[1751033397810,0.99919187,2434.4,2434.2,35.17402]
[1751033398012,3.2078,2433.6,2432.9,5.73586505]
[1751033398214,0.82191,2432.5,2432.4,8.19409294]
[1751033398511,16.58952436,2432.5,2431.9,8.19409294]
[1751033398713,11.29724718,2432.0,2431.9,8.19409294]
[1751033399208,0.82215,2431.8,2431.7,13.1105487]
[1751033399600,0.4806,2431.8,2431.6,7.016]
[1751033400417,0.4806,2431.8,2431.7,0.82218]
[1751033400706,49.37607,2433.4,2432.2,0.822]
[1751033400707,3.2078,2432.8,2432.2,0.822]
[1751033400906,1.1330844,2432.7,2432.3,7.83797]
[1751033401112,1.1330844,2432.6,2432.5,0.82191]
[1751033401313,4.7176,2432.8,2432.4,1.1111]
[1751033401502,5.53943,2432.8,2432.4,1.93303]
[1751033401699,11.98496718,2432.8,2432.3,7.016]
[1751033401899,2.15216,2432.7,2432.3,7.83798]
[1751033402099,1.9998,2432.6,2432.3,7.83798]
[1751033402312,1.12955047,2432.5,2432.3,7.83798]
[1751033402506,1.12955047,2432.4,2432.3,7.83798]
[1751033402704,1.9998,2432.6,2432.3,7.016]
[1751033402902,1.12960652,2432.5,2432.4,0.82194]
[1751033403105,1.12960652,2432.5,2432.4,2.24084]
[1751033403307,1.12960652,2432.5,2432.4,7.24084]
[1751033403505,1.9998,2432.9,2432.8,0.82181]
[1751033403803,1.127438,2432.9,2432.8,84.66861]
[1751033404003,1.127438,2432.9,2432.8,89.66861]
[1751033404206,1.9998,2433.3,2433.2,0.82167]
[1751033404411,3.21131437,2433.4,2433.3,0.82164]
[1751033404611,3.21131437,2433.4,2433.3,1.4189]
[1751033405006,3.21131437,2433.4,2433.3,2.24054]
[1751033405513,0.1695,2433.5,2433.2,33.3]
[1751033405711,4.2421982,2433.5,2433.2,34.12166]
[1751033405911,0.99109,2433.5,2433.2,34.12166]
[1751033406312,0.1695,2433.5,2433.3,0.82164]
[1751033406816,0.1695,2433.5,2433.4,4.02941]
[1751033407009,5.3988,2434.0,2433.4,4.5909]
[1751033407208,0.82152,2433.7,2433.5,26.304]
[1751033407408,0.82149,2433.8,2433.6,7.199]
[1751033407811,0.8215,2433.8,2433.6,7.199]
[1751033408114,0.82151,2433.7,2433.6,7.199]
[1751033408318,1.9998,2433.7,2433.6,7.199]
[1751033408514,2.82131,2433.7,2433.6,7.199]
[1751033408713,4.17021,2433.7,2433.6,7.199]
[1751033410011,0.82157,2433.5,2433.4,3.2078]
[1751033410203,4.17021,2433.7,2433.6,7.199]
[1751033412309,7.37801,2433.7,2433.6,7.199]
[1751033412613,5.2076,2433.7,2433.6,7.199]
[1751033413314,5.2076,2433.7,2433.6,8.02054]
[1751033414319,6.02911,2433.7,2433.6,7.199]
[1751033415008,7.35071,2433.7,2433.6,7.199]
[1751033418219,8.49178772,2433.7,2433.6,7.199]
[1751033419221,7.35071,2433.7,2433.6,7.199]
[1751033419712,4.14291,2433.7,2433.6,7.199]
[1751033420024,5.33659896,2433.7,2433.6,7.199]
[1751033420319,2.82131,2433.7,2433.6,7.199]
[1751033421618,6.02911,2433.7,2433.6,7.199]
[1751033421819,0.82164,2433.4,2433.2,0.82165]
[1751033422220,0.82164,2433.4,2433.3,7.199]
[1751033422722,0.8216,2433.5,2433.3,8.02064]
[1751033423119,0.8216,2433.5,2433.3,0.82164]
[1751033423322,0.8216,2433.5,2433.4,7.199]
[1751033423523,5.2076,2433.7,2433.6,0.82154]
[1751033423718,0.82154,2433.6,2433.4,7.199]
[1751033423918,0.82154,2433.6,2433.4,8.02058]
[1751033424120,6.02912,2433.7,2433.5,0.82155]
[1751033424421,0.82155,2433.6,2433.4,8.02059]
[1751033424922,2.82135,2433.6,2433.5,0.82158]
[1751033425416,2.82135,2433.6,2433.4,8.02059]
[1751033425720,0.82158,2433.5,2433.4,7.199]
[1751033426116,0.82164,2433.3,2433.2,0.82166]
[1751033426322,0.82164,2433.3,2433.2,8.02066]
[1751033426627,0.82164,2433.3,2433.2,7.199]
[1751033426920,1.9998,2433.5,2433.2,8.02068]
[1751033427116,0.82164,2433.3,2433.2,7.199]
[1751033427315,0.82168,2433.2,2433.1,30.13351]
[1751033427515,0.82168,2433.2,2433.1,36.5108]
[1751033429025,0.82168,2433.2,2433.1,10.4068]
[1751033429323,0.82168,2433.2,2433.1,36.5108]
[1751033429722,0.82168,2433.2,2433.1,3.2078]
[1751033429925,0.82168,2433.2,2433.1,10.4068]
[1751033430126,2.2088,2433.4,2433.1,10.4068]
[1751033430326,0.82168,2433.2,2433.1,11.2285]
[1751033430519,0.82168,2433.3,2433.1,36.4778]
[1751033430827,0.82168,2433.3,2433.1,37.29949]
[1751033431228,0.82168,2433.2,2433.1,37.29949]
[1751033431726,0.82168,2433.2,2433.1,37.29549]
[1751033431921,0.82168,2433.2,2433.1,4.02949]
[1751033432121,0.82168,2433.2,2433.1,37.28249]
[1751033433233,0.82168,2433.2,2433.1,4.02949]
[1751033433425,0.82168,2433.2,2433.1,37.27849]
[1751033433627,0.82162,2433.4,2433.3,0.82162]
[1751033433927,0.82162,2433.4,2433.1,36.4568]
[1751033433928,4.07753527,2434.4,2434.3,0.82131]
[1751033434127,1.19808603,2434.4,2434.3,0.42074907]
[1751033434526,2.1571,2434.7,2434.3,1.358]
[1751033434733,2.01453738,2434.6,2434.4,0.82127]
[1751033435028,2.01457738,2434.5,2434.3,2.17929]
[1751033435229,0.82126,2434.5,2434.4,0.82127]
[1751033435430,1.19338133,2434.6,2434.3,2.17928]
[1751033435627,2.01465133,2434.5,2434.3,0.82128]
[1751033435828,0.82127,2434.5,2434.3,0.82129]
[1751033436028,0.82127,2434.5,2434.3,2.17929]
[1751033436230,11.47439716,2434.7,2434.0,3.2078]
[1751033436435,11.47439716,2434.7,2434.1,33.249]
[1751033436436,0.82134,2434.2,2434.1,33.249]
[1751033436632,0.82138,2434.1,2433.9,0.82143]
[1751033436935,0.82138,2434.1,2433.8,3.16386]
[1751033437135,0.82141,2434.0,2433.9,33.251]
[1751033437329,0.82136,2434.2,2434.0,0.8214]
[1751033437536,1.99,2434.3,2434.0,0.8214]
[1751033437729,0.82135,2434.2,2434.0,0.8214]
[1751033437936,1.99,2434.3,2434.1,0.82136]
[1751033438132,1.19245816,2434.2,2434.1,0.82136]
[1751033438339,2.81131,2434.3,2434.1,0.82136]
[1751033438540,0.82134,2434.2,2434.1,7.04]
[1751033438835,2.01379375,2434.2,2434.1,7.04]
[1751033439035,3.43119375,2434.2,2434.1,7.04]
[1751033439439,5.42119375,2434.2,2434.1,7.04]
[1751033441048,11.86417091,2434.2,2433.7,50.5488]
[1751033441340,0.82147,2433.8,2433.7,57.5878]
[1751033441541,0.82147,2433.8,2433.7,10.2468]
[1751033442835,0.82147,2433.8,2433.7,3.2078]
[1751033443035,2.01492788,2433.8,2433.7,3.2078]
[1751033443239,0.82151,2433.7,2433.6,7.039]
[1751033443428,0.82151,2433.7,2433.3,3.2078]
[1751033443429,0.82154,2433.6,2433.5,7.039]
[1751033444343,2.01574574,2433.6,2433.5,7.039]
[1751033444947,3.2078,2433.9,2433.5,7.039]
[1751033445245,0.82152,2433.7,2433.5,7.86056]
[1751033445436,0.82152,2433.7,2433.5,8.4713]
[1751033445637,0.82154,2433.6,2433.5,8.4713]
[1751033445844,0.8215,2433.8,2433.5,9.29288]
[1751033446043,0.82151,2433.7,2433.5,9.29288]
[1751033446237,0.82154,2433.6,2433.5,8.4713]
[1751033447142,0.82154,2433.6,2433.5,7.039]
[1751033447342,2.81153,2433.7,2433.5,9.29287]
[1751033447546,1.99,2433.7,2433.6,0.82154]
[1751033447736,3.19958614,2433.7,2433.6,2.25384]
[1751033448049,4.02109614,2433.7,2433.6,1.4323]
[1751033448250,4.02109614,2433.7,2433.3,3.2078]
[1751033448251,3.19958614,2433.7,2433.3,3.2078]
[1751033448439,0.82157,2433.6,2433.4,33.8686]
[1751033448644,2.81153,2433.7,2433.5,0.82158]
[1751033448847,0.82154,2433.6,2433.5,2.26588]
[1751033451039,0.82154,2433.6,2433.5,1.4443]
[1751033451343,0.82154,2433.6,2433.5,2.26588]
[1751033451549,0.82154,2433.6,2433.5,1.4443]
[1751033451752,0.82158,2433.5,2433.4,33.047]
[1751033452860,0.82158,2433.5,2433.3,4.02942]
[1751033453057,0.82161,2433.4,2433.3,4.02944]
[1751033453258,0.82161,2433.4,2433.3,37.07744]
[1751033453561,0.82161,2433.4,2433.3,36.2558]
[1751033453755,0.82161,2433.4,2433.3,37.07744]
[1751033453950,0.82157,2433.6,2433.5,0.82157]
[1751033454151,0.82157,2433.6,2433.5,26.82857]
[1751033454660,2.81152,2433.7,2433.6,0.82154]
[1751033454860,4.02140649,2433.7,2433.6,2.17754]
[1751033455056,4.02140649,2433.7,2433.6,1.356]
[1751033455264,4.02140649,2433.7,2433.0,1.0869]
[1751033455265,15.46420365,2433.7,2432.5,0.82191]
[1751033455461,0.82188,2432.6,2432.5,7.04]
[1751033456060,2.082,2432.8,2432.5,7.04]
[1751033456261,0.82188,2432.6,2432.5,7.04]
[1751033457263,0.82188,2432.6,2432.5,7.86191]
[1751033457461,2.082,2432.8,2432.5,7.86191]
[1751033457653,0.82188,2432.6,2432.5,7.04]
[1751033457955,0.82188,2432.6,2432.5,7.86191]
[1751033458157,1.4174,2433.1,2432.5,12.04]
[1751033458357,1.0151,2433.2,2432.7,10.47211716]
[1751033458561,0.8218,2432.9,2432.8,26.008]
[1751033458763,0.8218,2432.9,2432.8,33.049]
[1751033459860,0.8218,2432.9,2432.7,3.2078]
[1751033460063,0.82178,2432.9,2432.8,33.052]
[1751033460464,3.2078,2433.0,2432.8,33.052]
[1751033460767,0.82178,2432.9,2432.8,33.052]
[1751033460952,2.03218364,2432.9,2432.8,33.052]
[1751033462263,2.03124992,2432.9,2432.8,33.052]
[1751033462660,1.20946992,2432.9,2432.8,33.87381]
[1751033462869,2.03124992,2432.9,2432.8,33.052]
[1751033463867,3.45544992,2432.9,2432.8,33.052]
[1751033465064,0.82181,2432.8,2432.7,7.041]
[1751033465267,4.49387992,2432.8,2432.7,33.055]
[1751033465568,4.49387992,2432.8,2432.7,33.054]
[1751033465769,3.28441,2432.8,2432.7,33.054]
[1751033466066,0.82191,2432.5,2432.4,10.2488]
[1751033466266,0.82191,2432.5,2432.4,33.054]
[1751033466462,0.82195,2432.4,2432.3,47.334]
[1751033466668,0.82195,2432.4,2432.3,80.388]
[1751033467170,2.05491,2432.4,2432.0,3.2078]
[1751033467362,8.08632716,2432.2,2432.1,7.042]
[1751033467565,0.82215,2431.8,2431.7,3.2078]
[1751033467869,0.82215,2431.8,2431.7,36.2628]
[1751033468463,1.3642,2432.1,2431.7,36.2628]
[1751033468870,0.82215,2431.8,2431.7,10.2498]
[1751033469064,0.82215,2431.8,2431.7,36.2648]
[1751033469471,1.3642,2432.1,2431.7,37.08697]
[1751033469669,0.82215,2431.8,2431.7,10.2498]
[1751033470072,0.82215,2431.8,2431.7,36.2678]
[1751033470464,2.81215,2431.8,2431.7,36.2678]
[1751033471169,0.82222,2431.6,2431.5,47.346]
[1751033471368,0.82222,2431.6,2431.5,7.026]
[1751033471672,0.82231,2431.4,2431.3,33.044]
[1751033471865,0.82231,2431.4,2431.3,7.026]
[1751033472065,0.82235,2431.2,2431.1,3.2078]
[1751033472366,0.82235,2431.2,2431.1,36.2518]
[1751033473173,0.82233,2431.3,2431.1,37.07419]
[1751033473366,1.99,2431.6,2431.2,7.26431716]
[1751033473670,0.82223,2431.6,2431.3,26.83932]
[1751033473870,1.99,2431.5,2431.3,26.8393]
[1751033474374,0.82229,2431.4,2431.3,26.017]
[1751033474678,0.82239,2431.1,2431.0,7.027]
[1751033475369,2.05583,2431.3,2430.8,3.2078]
[1751033475570,0.82245,2430.9,2430.8,29.2288]
[1751033475965,2.16005,2430.9,2430.8,29.2288]
[1751033476175,2.16005,2430.9,2430.8,3.2078]
[1751033476372,2.16005,2430.9,2430.7,7.027]
[1751033476572,2.16005,2430.9,2430.8,26.021]
[1751033476965,0.82249,2430.8,2430.7,7.027]
[1751033477165,0.82249,2430.8,2430.7,33.051]
[1751033477467,2.16007,2430.9,2430.7,33.051]
[1751033477767,1.3376,2430.9,2430.7,33.051]
[1751033478179,1.3376,2430.9,2430.8,0.82249]
[1751033478667,2.16008,2430.9,2430.7,33.051]
[1751033479068,1.3376,2430.9,2430.7,33.87352]
[1751033479265,2.16006,2430.9,2430.7,33.051]
[1751033479572,2.16007,2430.9,2430.7,33.055]
[1751033479878,1.3376,2430.9,2430.7,33.87751]
[1751033480276,2.16005,2430.9,2430.7,33.055]
[1751033480779,1.3376,2430.9,2430.7,33.87752]
[1751033481068,4.86302,2431.0,2430.7,33.87751]
[1751033481276,0.82247,2430.9,2430.7,33.055]
[1751033481474,0.82249,2430.8,2430.7,33.055]
[1751033481678,2.17998,2430.9,2430.7,33.055]
[1751033482072,2.81249,2430.8,2430.7,7.027]
[1751033482272,13.81441716,2430.8,2430.2,7.85268]
[1751033482473,0.82261,2430.5,2430.3,26.026]
[1751033482778,0.82257,2430.6,2430.4,26.026]
[1751033483168,0.82257,2430.6,2430.4,26.84862]
[1751033483370,1.99,2430.7,2430.4,26.029]
[1751033483574,2.17487,2430.6,2430.4,26.85161]
[1751033483780,1.99,2430.7,2430.5,0.82259]
[1751033483969,1.99,2430.7,2430.4,26.029]
[1751033483970,1.99,2430.7,2430.6,26.85156]
[1751033484174,3.2078,2431.2,2430.6,40.32331716]
[1751033484383,3.2078,2431.2,2431.1,0.82239]
[1751033484681,4.40576123,2431.2,2431.1,0.82239]
[1751033484877,5.1978,2431.2,2430.9,26.029]
[1751033485272,6.02018,2431.2,2431.0,0.82241]
[1751033485880,5.1978,2431.2,2431.1,0.82239]
[1751033486378,6.39650024,2431.2,2431.1,0.82239]
[1751033486682,1.99,2431.2,2431.1,0.82239]
[1751033486885,2.81238,2431.2,2431.0,7.8524]
[1751033487181,0.82239,2431.1,2431.0,7.8524]
[1751033487381,0.82239,2431.1,2431.0,7.03]
[1751033488379,0.82239,2431.1,2430.8,3.2078]
[1751033488380,1.19979147,2431.1,2430.8,7.03]
[1751033488591,2.02224483,2431.0,2430.9,26.03]
[1751033488780,1.19982483,2431.0,2430.9,26.85245]
[1751033488979,2.90289,2431.1,2430.9,26.85245]
[1751033489385,1.0359,2431.1,2431.0,0.82242]
[1751033489589,2.23637899,2431.1,2431.0,0.82242]
[1751033489790,1.99,2431.2,2430.9,26.03]
[1751033490081,1.99,2431.2,2431.1,0.82239]
[1751033490684,0.82242,2431.0,2430.9,27.0421]
[1751033490982,0.82242,2431.0,2430.9,26.03]
[1751033491379,2.81242,2431.0,2430.9,26.03]
[1751033491776,0.82245,2430.9,2430.8,3.2078]
[1751033491980,0.82245,2430.9,2430.8,10.2378]
[1751033492180,3.28635,2430.9,2430.8,10.2378]
[1751033492390,3.28635,2430.9,2430.8,3.2078]
[1751033492576,0.8226,2430.5,2430.4,3.2078]
[1751033492781,0.8226,2430.5,2430.4,36.2658]
[1751033492976,2.05626,2430.8,2430.1,0.9923]
[1751033492977,0.82262,2430.4,2430.3,7.03]
[1751033493189,0.82262,2430.4,2430.3,33.058]
[1751033493381,0.82269,2430.2,2430.1,0.9923]
[1751033493582,0.82269,2430.2,2430.1,33.058]
[1751033494488,2.02486088,2430.2,2430.1,33.058]
[1751033494686,2.02486088,2430.2,2430.1,33.057]
[1751033494985,1.20217088,2430.2,2430.1,33.057]
[1751033495187,1.20217088,2430.2,2430.1,35.21333]
[1751033495489,0.82263,2430.4,2430.2,0.82268]
[1751033495686,1.20248871,2430.3,2430.2,0.82268]
[1751033497186,1.20248871,2430.3,2430.2,13.08699716]
[1751033497690,1.20248871,2430.3,2430.2,26.85268]
[1751033498582,1.20248871,2430.3,2430.2,0.82268]
[1751033498789,0.82266,2430.3,2430.2,26.85268]
[1751033498983,0.82266,2430.3,2430.2,26.03]
[1751033499282,0.82269,2430.2,2430.1,7.03]
[1751033499485,0.82273,2430.1,2430.0,3.2078]
[1751033499680,0.82271,2430.2,2430.1,0.82272]
[1751033499888,0.82273,2430.1,2430.0,37.08653]
[1751033500089,1.99,2430.3,2430.0,36.2638]
[1751033500291,2.03057314,2430.2,2430.1,0.82273]
[1751033500492,1.20788314,2430.2,2430.1,0.82273]
[1751033500692,1.20788314,2430.2,2430.0,37.08653]
[1751033500896,1.99,2430.3,2430.0,36.2638]
[1751033501199,1.20880716,2430.2,2430.1,0.8227]
[1751033501382,1.20880716,2430.2,2430.1,26.8517]
[1751033501782,2.03149716,2430.2,2430.1,26.029]
[1751033502283,2.03149716,2430.2,2430.0,10.2338]
[1751033502284,0.82273,2430.1,2430.0,3.2078]
[1751033502489,1.20880716,2430.1,2430.0,36.2628]
[1751033502697,1.20880716,2430.1,2430.0,37.08556]
[1751033502898,1.20880716,2430.2,2430.0,36.2628]
[1751033503204,2.03153716,2430.1,2430.0,10.2338]
[1751033503495,2.03153716,2430.1,2430.0,37.08456]
[1751033503697,1.20880716,2430.1,2430.0,37.08456]
[1751033507203,1.20880716,2430.1,2430.0,11.05656]
[1751033507397,1.20880716,2430.1,2430.0,10.2338]
[1751033507398,2.03153716,2430.1,2430.0,10.2338]
[1751033507602,1.20880716,2430.1,2430.0,37.08556]
[1751033507799,2.03153716,2430.1,2430.0,4.03056]
[1751033507998,2.03153716,2430.1,2430.0,36.2618]
[1751033508199,2.03153716,2430.1,2430.0,37.08456]
[1751033508401,1.20880716,2430.1,2430.0,37.08456]
[1751033508702,2.03153716,2430.1,2430.0,37.08456]
[1751033509103,1.20880716,2430.1,2430.0,37.08456]
[1751033510693,0.8227,2430.2,2430.1,0.8227]
[1751033510896,1.20259784,2430.2,2430.1,26.8507]
[1751033512913,2.02528784,2430.2,2430.1,26.028]
[1751033513206,2.02528784,2430.2,2430.1,26.85073]
[1751033513396,2.02528784,2430.2,2430.1,26.028]
[1751033513602,2.02528784,2430.2,2430.1,26.85073]
[1751033513796,2.02528784,2430.2,2430.1,26.028]
[1751033514506,2.02528784,2430.2,2430.1,26.85073]
[1751033515219,2.02528784,2430.2,2430.1,0.82273]
[1751033515402,0.82272,2430.1,2430.0,10.2338]
[1751033515707,2.02531784,2430.1,2430.0,36.2598]
[1751033515907,2.02531784,2430.1,2430.0,37.08256]
[1751033516407,2.02531784,2430.1,2430.0,36.2598]
[1751033516815,1.20259784,2430.1,2430.0,37.08256]
[1751033517908,1.99,2430.3,2430.2,0.82269]
[1751033518108,1.20290546,2430.3,2430.2,26.84869]
[1751033520114,0.82242,2431.0,2430.4,2.05653]
[1751033520419,0.82249,2430.8,2430.7,3.2078]
[1751033520610,0.82249,2430.8,2430.7,29.2308]
[1751033520807,0.82255,2430.6,2430.5,0.82257]
[1751033521008,0.82255,2430.6,2430.5,33.87257]
[1751033521307,2.89574,2430.7,2430.6,0.82256]
[1751033521812,0.82256,2430.6,2430.5,33.87257]
[1751033522012,0.82256,2430.6,2430.5,33.05]
[1751033522318,4.24864,2430.7,2430.5,33.05]
[1751033522509,1.99,2430.8,2430.7,0.82252]
[1751033522718,1.99,2430.8,2430.7,37.31563716]
[1751033522911,3.25625527,2431.3,2431.0,0.82242]
[1751033523110,0.82238,2431.2,2431.1,33.047]